bitfinex/quotes_ETHUSD_20251221
["timestamp","ask_amount","ask_price","bid_price","bid_amount"]
[1766331732445,1.01226038,2972.1,2971.7,4.64648198]
[1766331732649,0.001,2972.1,2971.5,0.434]
[1766331733845,1.6363,2972.1,2971.5,0.434]
[1766331734433,0.001,2971.8,2971.5,0.434]
[1766331736253,0.001,2971.8,2971.6,0.434]
[1766331736549,0.001,2971.8,2971.7,0.434]
[1766331737536,0.001,2971.8,2971.2,4.64648198]
[1766331737860,0.001,2971.8,2971.3,1.23522387]
[1766331745258,0.001,2972.1,2971.3,4.6007475]
[1766331745750,0.001,2972.1,2971.3,1.23522387]
[1766331745933,0.001,2972.1,2971.3,5.87868783]
[1766331746134,1.5467,2972.1,2971.3,5.87868783]
[1766331747758,1.5467,2972.1,2971.4,0.58786878]
[1766331748059,0.001,2972.1,2971.4,0.58786878]
[1766331748445,0.001,2972.1,2971.6,4.64346396]
[1766331748659,0.001,2972.1,2971.7,0.434]
[1766331749354,0.001,2972.7,2971.9,4.64346396]
[1766331749558,0.001,2972.7,2971.9,5.49108056]
[1766331750862,0.001,2972.7,2972.2,4.64346396]
[1766331751061,0.001,2972.7,2972.3,0.434]
[1766331752568,0.001,2973.0,2972.3,0.434]
[1766331753658,0.001,2973.0,2972.3,5.07746396]
[1766331753863,0.001,2973.2,2972.5,4.64346396]
[1766331754050,0.001,2973.2,2972.4,0.5077464]
[1766331754363,0.001,2973.2,2972.7,4.64346396]
[1766331754561,0.001,2973.5,2973.0,4.64346396]
[1766331754865,1.5467,2973.9,2973.0,4.64346396]
[1766331755162,1.5467,2973.9,2973.0,5.15121036]
[1766331755544,4.90930891,2973.9,2973.0,5.15121036]
[1766331755738,4.90930891,2973.9,2973.0,0.5077464]
[1766331756457,1.522,2973.7,2972.8,5.07746396]
[1766331756663,0.9502,2973.6,2972.8,5.07746396]
[1766331758332,0.9502,2973.6,2972.8,4.64346396]
[1766331758539,0.9502,2973.6,2972.9,0.434]
[1766331762567,1.522,2973.6,2972.9,0.434]
[1766331763337,0.9502,2973.3,2971.7,4.63840618]
[1766331763542,0.48848299,2973.6,2972.1,3.36461298]
[1766331763742,0.9502,2973.5,2972.2,0.434]
[1766331763949,0.9502,2973.1,2972.2,0.434]
[1766331764155,0.9502,2972.5,2971.4,3.37550755]
[1766331764350,1.522,2972.5,2971.5,0.33775075]
[1766331764685,1.522,2972.5,2971.6,3.36511982]
[1766331764963,4.63840618,2973.2,2971.4,3.37543234]
[1766331764964,0.9502,2972.7,2971.4,0.01010969]
[1766331765168,1.522,2972.3,2971.5,0.434]
[1766331767186,1.522,2972.3,2971.5,3.79930344]
[1766331767553,1.523,2972.3,2971.5,3.79930344]
[1766331767772,1.522,2972.9,2971.6,0.37993034]
[1766331767979,1.522,2972.9,2971.8,4.63840618]
[1766331768183,1.522,2972.9,2971.9,0.434]
[1766331768585,1.522,2972.9,2971.9,0.43155706]
[1766331769283,3.36373129,2972.9,2971.9,0.43155706]
[1766331769487,1.85837313,2972.8,2971.9,0.43155706]
[1766331770485,1.522,2972.7,2971.9,0.43155706]
[1766331772196,7.06413779,2972.8,2971.6,0.39004003]
[1766331772479,7.06413779,2972.8,2971.3,3.37761487]
[1766331772480,1.522,2972.1,2971.7,0.434]
[1766331773400,1.522,2972.1,2971.8,0.434]
[1766331773600,1.522,2972.1,2971.9,0.434]
[1766331773966,3.3642029,2972.5,2971.9,0.434]
[1766331774172,1.85842029,2972.4,2971.9,0.434]
[1766331774366,1.522,2972.3,2971.9,0.002]
[1766331774596,1.522,2972.3,2972.0,0.434]
[1766331774802,3.36394523,2972.7,2971.9,0.002]
[1766331775098,6.72789046,2972.7,2971.9,0.436]
[1766331775292,0.70642636,2972.6,2971.9,0.436]
[1766331775802,1.522,2972.4,2971.9,0.436]
[1766331775970,0.70642636,2972.6,2971.9,0.002]
[1766331776176,0.5718,2972.2,2971.9,0.002]
[1766331776387,1.522,2972.5,2971.9,0.002]
[1766331776676,0.22284264,2972.4,2971.9,0.002]
[1766331776886,1.522,2972.6,2971.9,0.002]
[1766331777394,3.36401993,2972.7,2971.9,0.002]
[1766331777566,1.522,2972.6,2971.9,0.002]
[1766331778092,3.36401993,2972.7,2971.9,0.002]
[1766331778472,1.522,2972.5,2971.9,0.002]
[1766331778688,0.48860938,2972.4,2971.9,0.002]
[1766331779408,4.88601463,2972.7,2971.9,0.002]
[1766331779800,1.522,2972.6,2971.9,0.002]
[1766331780007,3.36401463,2972.7,2971.9,0.002]
[1766331780204,0.5718,2972.3,2971.9,0.002]
[1766331780409,3.36417157,2972.5,2971.9,0.002]
[1766331780611,1.522,2972.3,2971.9,0.002]
[1766331780908,0.9502,2972.1,2971.7,0.434]
[1766331781110,1.522,2972.1,2971.7,0.434]
[1766331781508,1.522,2972.6,2971.7,0.434]
[1766331782409,1.522,2972.6,2971.9,0.002]
[1766331782583,2.01060313,2972.6,2971.9,0.002]
[1766331783675,1.522,2972.5,2971.9,0.002]
[1766331784200,3.85268231,2972.6,2971.9,0.002]
[1766331784377,1.522,2972.5,2971.9,0.002]
[1766331785202,7.2168145,2972.6,2971.9,0.002]
[1766331785377,0.72168145,2972.5,2971.9,0.002]
[1766331785577,1.4663,2972.4,2971.9,0.002]
[1766331786103,1.4663,2972.3,2971.9,0.002]
[1766331786903,0.72168145,2972.5,2971.5,0.434]
[1766331787107,0.5158,2972.2,2971.5,0.434]
[1766331787315,1.4663,2972.2,2971.5,0.434]
[1766331787481,1.4663,2972.2,2971.3,3.36752263]
[1766331787684,1.4663,2972.2,2971.4,0.77075226]
[1766331788828,0.9505,2972.3,2971.4,0.77075226]
[1766331789123,1.4663,2972.2,2971.4,0.77075226]
[1766331790106,1.4663,2972.2,2971.4,0.77275226]
[1766331790502,0.5158,2972.2,2971.4,0.77275226]
[1766331790708,1.4663,2972.1,2971.4,0.77275226]
[1766331790932,1.4663,2972.1,2971.5,0.41402749]
[1766331791131,1.4663,2972.4,2971.5,0.41402749]
[1766331791299,5.26640469,2972.6,2971.5,0.41402749]
[1766331791498,3.80010469,2972.6,2971.5,0.41402749]
[1766331791712,1.4663,2972.5,2971.5,0.41402749]
[1766331791914,2.32933586,2972.5,2971.5,0.41402749]
[1766331792249,1.4663,2972.4,2971.5,0.41402749]
[1766331792823,2.32933586,2972.5,2971.5,3.77932627]
[1766331793137,1.4663,2972.4,2971.5,0.41402749]
[1766331795324,1.4663,2972.4,2971.5,3.7793178]
[1766331796136,1.4663,2972.4,2971.5,0.41402749]
[1766331797528,1.96252204,2972.4,2971.5,0.41402749]
[1766331797835,1.96252204,2972.4,2971.5,3.77932735]
[1766331798734,1.96252204,2972.4,2971.5,3.78132735]
[1766331801210,1.4663,2972.3,2971.5,0.41602749]
[1766331802112,0.49622204,2972.4,2971.5,0.41602749]
[1766331802313,0.5158,2972.2,2971.5,0.002]
[1766331803040,0.49622204,2972.4,2971.6,0.434]
[1766331803237,1.96252204,2972.4,2971.6,0.434]
[1766331803420,0.001,2972.5,2971.6,0.434]
[1766331803623,1.4663,2972.3,2971.6,0.434]
[1766331809550,3.36521361,2972.5,2971.5,0.002]
[1766331809758,1.4663,2972.3,2971.6,0.434]
[1766331810049,0.9505,2972.0,2971.5,0.002]
[1766331810431,0.436,2972.2,2971.5,0.002]
[1766331811046,0.9505,2972.2,2971.5,0.002]
[1766331811238,0.9505,2972.2,2971.5,0.436]
[1766331812663,1.4684,2972.2,2971.5,0.436]
[1766331812955,2.01897403,2972.2,2971.5,0.436]
[1766331815666,0.55057403,2972.2,2971.5,0.436]
[1766331816362,5.23172267,2972.5,2971.5,0.436]
[1766331817564,1.4305,2972.4,2971.5,0.436]
[1766331817764,0.001,2972.5,2971.6,4.67668076]
[1766331817940,0.001,2972.4,2971.6,4.67668076]
[1766331818148,0.001,2972.4,2971.6,4.64302886]
[1766331818357,0.001,2972.4,2971.7,1.18096363]
[1766331818561,0.001,2972.4,2971.8,3.36496399]
[1766331818762,0.001,2972.4,2971.9,0.435]
[1766331822980,0.001,2972.8,2972.0,8.00636455]
[1766331825756,1.4315,2972.8,2972.0,8.00636455]
[1766331825960,1.4315,2972.8,2972.1,0.84413646]
[1766331827084,0.001,2972.4,2972.1,0.84413646]
[1766331829865,0.001,2972.4,2972.2,0.435]
[1766331830283,0.001,2972.8,2972.2,0.435]
[1766331831887,0.001,2972.8,2972.2,3.79947245]
[1766331835270,0.001,2972.8,2972.2,0.435]
[1766331838896,0.001,2972.8,2972.2,3.79949149]
[1766331839102,0.001,2972.8,2972.3,0.37994915]
[1766331848178,1.4447,2973.3,2972.3,8.38596511]
[1766331848511,1.4447,2973.3,2972.3,11.75036305]
[1766331849285,1.4447,2973.3,2972.3,8.38596511]
[1766331849839,1.4447,2973.3,2972.3,11.75036305]
[1766331850011,1.4447,2973.3,2972.4,1.21853631]
[1766331850506,0.001,2973.5,2972.4,1.21853631]
[1766331850706,0.4777,2973.3,2972.4,1.21853631]
[1766331850912,1.4447,2973.3,2972.4,1.21853631]
[1766331851295,1.4447,2973.3,2972.4,4.58272982]
[1766331851493,1.4457,2973.3,2972.5,1.29686949]
[1766331851705,1.4457,2973.3,2972.6,0.435]
[1766331851897,0.001,2973.3,2972.6,0.435]
[1766331852099,1.4447,2973.2,2972.6,0.435]
[1766331853810,0.001,2973.3,2972.6,0.435]
[1766331854010,1.4447,2973.1,2972.6,0.435]
[1766331854804,0.967,2973.2,2972.5,0.435]
[1766331855006,0.967,2972.8,2972.5,0.435]
[1766331855191,1.4447,2972.8,2972.5,0.435]
[1766331856616,8.47031654,2973.3,2972.5,0.435]
[1766331856805,0.84703165,2973.2,2972.5,0.435]
[1766331857113,0.967,2972.9,2972.5,0.435]
[1766331857327,1.4447,2972.9,2972.5,0.435]
[1766331859883,0.001,2972.8,2972.5,0.435]
[1766331860084,0.001,2972.8,2972.3,0.002]
[1766331860301,0.001,2972.8,2972.4,0.435]
[1766331860699,0.001,2972.8,2972.3,0.002]
[1766331860910,0.001,2972.8,2972.4,0.435]
[1766331862223,0.001,2972.8,2972.4,0.81513957]
[1766331869932,0.001,2972.8,2972.4,0.81713957]
[1766331872532,0.001,2972.8,2972.4,0.002]
[1766331872737,1.4126,2972.7,2972.4,0.002]
[1766331873105,0.001,2972.8,2972.4,0.002]
[1766331873318,0.4528,2972.6,2972.4,0.002]
[1766331873514,1.4126,2972.6,2972.4,0.002]
[1766331873919,1.4136,2972.8,2972.4,0.002]
[1766331874318,1.4126,2972.7,2972.4,0.002]
[1766331876310,0.001,2972.9,2972.4,0.38234857]
[1766331876530,1.4487,2973.5,2972.4,7.11083639]
[1766331876840,1.4487,2973.5,2972.5,4.64084585]
[1766331877141,1.4487,2973.5,2972.4,7.11083639]
[1766331879308,1.4477,2973.4,2972.4,7.11083639]
[1766331885751,1.4487,2973.3,2972.4,7.11083639]
[1766331885916,1.4487,2973.3,2972.5,0.75478364]
[1766331888368,1.4487,2973.3,2972.6,3.3640584]
[1766331888651,1.4487,2973.3,2972.7,0.435]
[1766331891546,1.4477,2973.2,2972.7,0.435]
[1766331894160,0.001,2973.3,2972.5,0.75478364]
[1766331894332,0.4783,2972.9,2972.6,0.435]
[1766331894526,1.4477,2972.9,2972.6,0.435]
[1766331896527,1.3977,2972.9,2972.6,0.435]
[1766331896728,0.9694,2973.1,2972.6,0.435]
[1766331897948,0.9694,2973.1,2972.5,3.36414646]
[1766331898153,0.9694,2973.1,2972.6,0.435]
[1766331898557,1.4477,2973.0,2972.6,0.435]
[1766331902173,0.9694,2973.1,2972.6,0.435]
[1766331902467,1.4477,2973.0,2972.6,0.435]
[1766331905974,0.001,2973.2,2972.5,0.437]
[1766331906276,1.4019,2973.0,2972.5,0.437]
[1766331906641,1.4019,2973.0,2972.5,3.80116847]
[1766331906857,1.4019,2973.0,2972.5,4.5181249]
[1766331910278,0.001,2973.2,2972.5,4.5181249]
[1766331910438,1.4019,2973.1,2972.5,4.5181249]
[1766331910639,0.001,2973.2,2972.5,4.5181249]
[1766331910864,1.4019,2973.1,2972.5,4.5181249]
[1766331914045,0.001,2973.2,2972.5,4.5181249]
[1766331914046,0.4393,2973.0,2972.5,4.5181249]
[1766331914260,1.4019,2973.0,2972.5,4.5181249]
[1766331915873,1.4019,2973.0,2972.5,4.0831249]
[1766331916076,1.4019,2973.0,2972.5,4.5181249]
[1766331916275,0.001,2973.2,2972.6,0.45201249]
[1766331916583,0.001,2973.5,2972.6,0.45201249]
[1766331917777,1.4029,2973.5,2972.6,0.45201249]
[1766331918275,1.4029,2973.5,2972.7,3.36394523]
[1766331919378,0.001,2973.0,2972.7,3.36394523]
[1766331919580,0.001,2973.0,2972.8,0.7180001]
[1766331919903,0.001,2973.0,2972.9,0.435]
[1766331926673,0.001,2973.0,2972.7,3.36393704]
[1766331926879,0.001,2973.0,2972.7,0.435]
[1766331929976,0.001,2973.0,2972.7,3.79888882]
[1766331930177,0.001,2973.0,2972.8,0.76149164]
[1766331932420,0.001,2973.0,2972.8,4.125308]
[1766331933167,0.001,2973.0,2972.8,0.76149164]
[1766331935392,0.001,2973.0,2972.8,0.76349164]
[1766331936555,0.001,2973.5,2972.8,0.76349164]
[1766331936787,0.001,2973.5,2972.8,4.12730052]
[1766331936981,0.001,2973.5,2972.9,0.45623005]
[1766331937288,0.001,2973.6,2972.9,0.45623005]
[1766331938908,0.001,2973.6,2973.0,6.72721156]
[1766331939091,0.001,2973.6,2973.1,0.435]
[1766331941214,0.001,2973.6,2973.1,3.79848138]
[1766331941402,0.001,2973.6,2973.2,0.37984814]
[1766331944126,0.001,2973.6,2973.1,0.435]
[1766331950717,0.001,2973.6,2972.9,0.45823005]
[1766331950923,1.414,2973.6,2973.0,0.435]
[1766331955633,0.001,2973.6,2973.0,0.435]
[1766331956448,0.001,2973.6,2972.9,0.45823005]
[1766331956738,0.9814,2973.3,2973.0,0.435]
[1766331956901,1.413,2973.0,2972.9,0.002]
[1766331957538,0.436,2973.5,2972.9,0.002]
[1766331957830,1.413,2973.4,2972.9,0.002]
[1766331958035,1.413,2973.2,2972.9,0.002]
[1766331958224,0.4316,2973.1,2972.9,0.002]
[1766331958423,1.413,2973.1,2972.9,0.002]
[1766331960534,0.9814,2973.3,2972.5,0.002]
[1766331960824,11.36500191,2973.4,2972.5,0.437]
[1766331960825,0.9814,2972.9,2972.5,0.437]
[1766331961030,1.413,2972.9,2972.5,0.437]
[1766331964530,3.36336262,2973.3,2972.5,0.437]
[1766331964732,1.413,2973.1,2972.5,0.437]
[1766331965434,1.0025,2973.3,2972.5,0.437]
[1766331965735,1.4335,2973.1,2972.5,0.437]
[1766331966234,3.36335977,2973.3,2972.5,0.437]
[1766331966431,1.4335,2973.1,2972.5,0.437]
[1766331966631,0.67265622,2973.2,2972.5,0.437]
[1766331966935,1.4335,2973.0,2972.5,0.437]
[1766331968033,5.31122238,2973.2,2972.5,0.002]
[1766331968234,0.436,2973.5,2972.4,0.002]
[1766331968235,4.63856616,2972.8,2972.4,0.002]
[1766331968541,1.4335,2972.6,2972.4,0.002]
[1766331969506,5.07556616,2973.0,2972.1,0.002]
[1766331969711,0.431,2972.8,2972.1,0.002]
[1766331969908,0.431,2972.6,2972.1,0.002]
[1766331970108,1.0025,2972.5,2972.1,0.002]
[1766331971634,1.4335,2972.4,2972.1,0.002]
[1766331971853,0.47976764,2972.3,2971.7,0.002]
[1766331972341,1.0025,2972.0,2971.7,0.002]
[1766331972548,1.4335,2971.9,2971.7,0.002]
[1766331973338,0.91676764,2972.3,2971.6,0.002]
[1766331973513,0.431,2971.9,2971.6,0.002]
[1766331973715,1.4335,2971.8,2971.6,0.002]
[1766331975247,0.431,2972.0,2971.6,0.002]
[1766331975448,1.4335,2972.0,2971.6,0.002]
[1766331978273,1.91331502,2972.0,2971.6,0.002]
[1766331978648,1.4335,2971.9,2971.6,0.002]
[1766331978837,1.4335,2971.9,2971.5,0.002]
[1766331979042,0.431,2972.1,2971.5,0.002]
[1766331979242,1.4335,2972.1,2971.5,0.002]
[1766331980162,1.0025,2972.1,2971.5,0.002]
[1766331980353,1.4335,2972.0,2971.5,0.002]
[1766331983081,0.57180154,2972.3,2971.5,4.64573631]
[1766331983238,3.36456208,2973.1,2972.0,4.64373631]
[1766331983570,1.4335,2972.9,2972.0,4.64373631]
[1766331983770,2.05808557,2972.9,2971.9,0.435]
[1766331984466,1.4335,2972.8,2971.9,0.435]
[1766331985852,7.35209491,2972.9,2971.9,0.435]
[1766331986050,0.9772,2972.8,2971.9,0.435]
[1766331986265,0.9772,2972.6,2971.9,0.435]
[1766331986580,1.444,2972.6,2971.9,0.435]
[1766331987175,0.9772,2972.5,2971.9,0.435]
[1766331987388,1.444,2972.4,2971.9,0.435]
[1766331988979,4.64373631,2972.3,2971.8,1.01078677]
[1766331989154,1.444,2972.1,2971.8,1.01078677]
[1766331989564,1.444,2972.1,2971.6,0.435]
[1766331995675,0.001,2972.4,2971.5,0.002]
[1766331995881,0.961,2972.3,2971.6,0.435]
[1766331996078,1.3978,2972.2,2971.6,0.435]
[1766331997454,0.001,2972.1,2971.6,0.435]
[1766331999677,1.3978,2972.0,2971.6,0.435]
[1766332000778,0.001,2972.1,2971.6,0.435]
[1766332001386,0.001,2972.4,2971.6,0.81544156]
[1766332003250,1.3988,2972.4,2971.6,0.81544156]
[1766332004887,0.961,2972.3,2971.6,0.38044156]
[1766332005065,0.001,2972.4,2971.3,0.002]
[1766332005066,1.3978,2971.6,2971.3,0.002]
[1766332005606,4.64373631,2972.0,2971.3,0.002]
[1766332005959,1.3978,2972.1,2971.3,0.002]
[1766332006277,5.51901814,2972.2,2971.3,0.002]
[1766332006278,0.961,2971.9,2971.3,0.002]
[1766332006468,0.4368,2971.6,2971.3,0.002]
[1766332006780,1.3978,2971.6,2971.5,0.002]
[1766332007192,1.3978,2971.7,2971.2,0.002]
[1766332007392,0.961,2971.7,2971.2,0.002]
[1766332007696,0.77349461,2971.8,2971.2,0.002]
[1766332007697,1.3978,2971.5,2971.2,0.002]
[1766332008694,1.3978,2971.7,2971.0,0.002]
[1766332008861,0.21712946,2971.6,2971.0,0.002]
[1766332009182,1.61492946,2971.6,2971.0,0.002]
[1766332010292,1.3978,2971.5,2971.0,0.002]
[1766332011693,0.21712946,2971.6,2971.0,0.002]
[1766332011890,0.4368,2971.4,2971.0,0.002]
[1766332012095,1.3978,2971.4,2971.0,0.002]
[1766332015003,0.21712946,2971.6,2971.0,0.002]
[1766332015218,1.3978,2971.7,2971.0,0.002]
[1766332015491,1.3978,2971.6,2971.0,0.002]
[1766332015916,0.4368,2971.6,2971.0,0.002]
[1766332016206,1.3978,2971.5,2971.0,0.002]
[1766332017463,4.13850021,2971.8,2971.0,0.002]
[1766332017669,0.4368,2971.5,2971.0,0.002]
[1766332018018,1.3978,2971.4,2971.0,0.002]
[1766332018565,0.961,2971.6,2971.0,0.002]
[1766332018795,0.961,2971.4,2971.0,0.002]
[1766332019015,1.3978,2971.3,2971.0,0.002]
[1766332020133,1.3978,2971.7,2971.0,0.002]
[1766332021428,0.001,2971.6,2971.0,0.002]
[1766332021987,0.437,2971.9,2971.0,0.002]
[1766332022204,2.40894108,2972.2,2971.1,0.46470406]
[1766332022396,2.40894108,2972.2,2971.2,0.435]
[1766332022606,1.3978,2972.2,2971.2,0.435]
[1766332022806,1.3988,2972.1,2971.2,0.435]
[1766332023400,1.3978,2972.0,2971.2,0.435]
[1766332023912,0.001,2972.1,2971.2,0.435]
[1766332024218,1.3978,2972.0,2971.2,0.435]
[1766332025128,1.3985,2972.0,2971.2,0.435]
[1766332025284,0.001,2972.1,2971.2,0.435]
[1766332025490,1.3985,2972.0,2971.2,0.8152857]
[1766332026112,3.36563068,2972.1,2971.2,0.8152857]
[1766332026323,1.3985,2971.9,2971.2,0.8152857]
[1766332028990,0.437,2972.3,2971.5,4.64504057]
[1766332029195,1.3985,2972.3,2971.3,4.64504057]
[1766332029396,1.3985,2972.3,2971.2,5.20191705]
[1766332029397,1.3985,2972.3,2971.4,0.98469576]
[1766332029596,1.3985,2972.3,2971.2,5.20191705]
[1766332030022,0.9404,2972.3,2971.2,5.20191705]
[1766332030231,1.3985,2972.2,2971.2,4.19103491]
[1766332031234,0.001,2972.4,2971.2,4.19103491]
[1766332031530,0.001,2972.4,2971.3,0.52019171]
[1766332031701,0.4581,2972.2,2971.3,0.52019171]
[1766332031902,1.3985,2972.2,2971.3,0.52019171]
[1766332032133,1.3985,2972.2,2971.3,3.88571786]
[1766332036653,1.3995,2972.2,2971.3,3.88571786]
[1766332036857,1.3995,2972.2,2971.4,0.47111133]
[1766332037857,1.3985,2972.1,2971.4,0.47111133]
[1766332038953,0.9404,2972.1,2971.5,0.435]
[1766332039159,0.4581,2972.0,2971.5,0.435]
[1766332040057,1.3985,2971.9,2971.4,0.90611133]
[1766332040264,1.3985,2971.8,2971.1,0.002]
[1766332040565,1.3985,2971.8,2971.3,0.435]
[1766332054785,0.001,2972.1,2971.3,0.435]
[1766332055595,3.36562463,2972.1,2971.3,0.435]
[1766332055760,0.71780282,2972.1,2971.3,0.435]
[1766332055960,0.71780282,2972.1,2971.1,3.36774073]
[1766332056276,0.001,2972.1,2971.2,0.435]
[1766332056775,1.4046,2972.0,2971.2,0.435]
[1766332058768,0.001,2972.1,2971.2,7.1662845]
[1766332059098,0.001,2972.4,2971.4,4.64368642]
[1766332059790,0.001,2972.4,2971.5,1.01081061]
[1766332059960,0.001,2972.4,2971.6,1.0004497]
[1766332060288,0.001,2972.4,2971.6,4.36562677]
[1766332060671,0.001,2972.4,2971.6,5.37643738]
[1766332061994,0.001,2972.2,2971.6,5.37643738]
[1766332070772,1.36070625,2972.3,2971.6,5.37643738]
[1766332070978,0.95350758,2972.3,2971.7,1.33839481]
[1766332071703,0.001,2972.4,2971.7,1.33839481]
[1766332073098,1.4046,2972.3,2971.6,5.37643738]
[1766332074681,1.4056,2972.4,2971.6,5.37643738]
[1766332077012,1.4046,2972.3,2971.6,5.37643738]
[1766332080082,0.4075,2971.9,2971.3,0.002]
[1766332080281,0.437,2971.8,2971.3,0.002]
[1766332080615,0.4075,2972.2,2971.7,4.6422125]
[1766332080814,1.0110593,2972.2,2971.7,4.6422125]
[1766332081323,0.9981,2972.3,2971.7,4.6422125]
[1766332085832,0.001,2972.3,2971.7,5.48645785]
[1766332085997,0.001,2972.8,2972.0,4.6422125]
[1766332086197,1.4065,2972.8,2972.1,0.435]
[1766332086594,1.4055,2972.7,2972.1,0.435]
[1766332089223,0.001,2972.3,2972.1,0.435]
[1766332089393,0.001,2972.3,2972.2,0.37997222]
[1766332091009,0.001,2972.3,2972.1,0.435]
[1766332093241,0.001,2972.8,2972.1,0.435]
[1766332093538,1.4065,2972.8,2972.1,0.435]
[1766332093737,4.37444623,2973.0,2972.4,4.6422125]
[1766332093738,1.01079018,2973.0,2972.4,4.6422125]
[1766332093924,1.4065,2973.1,2972.5,0.435]
[1766332095443,1.4065,2973.1,2972.5,3.79916081]
[1766332096945,1.4065,2973.1,2972.5,0.435]
[1766332097706,0.001,2973.1,2972.5,0.435]
[1766332098041,0.001,2973.1,2972.6,0.89056909]
[1766332098241,0.001,2973.1,2972.6,5.52940156]
[1766332098816,0.001,2973.3,2972.9,4.63883247]
[1766332099024,0.001,2973.3,2973.0,0.435]
[1766332100253,0.001,2973.5,2973.0,0.435]
[1766332100423,0.001,2973.5,2973.0,0.94238325]
[1766332100846,0.001,2973.5,2973.1,3.36349265]
[1766332102765,0.001,2973.5,2973.0,0.94238325]
[1766332103127,0.001,2973.5,2973.0,4.30595103]
[1766332104929,0.001,2973.5,2973.0,7.66955681]
[1766332105257,0.001,2973.5,2973.1,0.76695568]
[1766332107153,0.001,2973.5,2973.1,4.13038839]
[1766332109179,0.001,2973.5,2973.1,0.76695568]
[1766332109371,0.001,2973.5,2973.1,4.13043741]
[1766332109541,0.001,2973.6,2973.1,4.13043741]
[1766332109740,0.001,2973.6,2973.2,0.79289601]
[1766332111845,0.001,2973.6,2973.1,3.36348173]
[1766332115569,0.001,2973.7,2973.1,11.36580685]
[1766332115786,0.001,2973.9,2973.4,4.63883247]
[1766332115936,0.001,2973.9,2973.5,0.435]
[1766332116969,0.001,2974.0,2973.5,0.435]
[1766332117170,0.001,2974.0,2973.6,0.50738325]
[1766332117970,0.001,2974.0,2973.6,3.87023573]
[1766332119772,0.001,2974.2,2973.6,3.87023573]
[1766332120550,1.3533,2974.1,2973.6,3.87023573]
[1766332121677,0.001,2974.0,2973.6,3.87023573]
[1766332121972,0.001,2974.2,2973.6,3.87023573]
[1766332121973,0.001,2974.2,2973.7,0.76682642]
[1766332123878,0.001,2974.3,2973.7,0.76682642]
[1766332123879,0.001,2974.3,2973.7,4.12954821]
[1766332124054,0.001,2974.3,2973.7,7.49236221]
[1766332125255,0.001,2974.7,2973.7,7.49236221]
[1766332125678,1.3543,2974.8,2973.7,12.13119468]
[1766332125884,1.3543,2974.8,2973.8,1.26385779]
[1766332126085,1.3543,2974.8,2973.9,7.16017568]
[1766332126086,0.001,2974.8,2973.9,7.16017568]
[1766332126257,2.023,2975.2,2973.9,7.16017568]
[1766332126258,0.001,2975.2,2974.6,4.63883247]
[1766332126461,1.3533,2975.6,2974.7,0.435]
[1766332127148,1.00993608,2975.7,2974.7,0.435]
[1766332127383,1.3543,2975.5,2974.7,0.435]
[1766332127584,1.3533,2975.4,2974.7,0.435]
[1766332128079,0.9396,2975.4,2974.7,3.7966532]
[1766332128385,1.3533,2975.3,2974.8,0.37966532]
[1766332130356,1.3533,2975.3,2974.8,3.74122626]
[1766332131354,1.3543,2975.5,2974.8,3.74122626]
[1766332133880,1.3533,2975.4,2974.8,3.74122626]
[1766332134892,0.001,2975.5,2974.8,3.74122626]
[1766332135060,0.4137,2975.4,2974.9,0.41762263]
[1766332135255,1.3533,2975.4,2974.9,0.41762263]
[1766332136091,1.3543,2975.4,2974.9,0.41762263]
[1766332138484,1.3543,2975.4,2974.9,3.77907402]
[1766332138686,1.3543,2975.4,2974.9,0.41762263]
[1766332140207,0.9396,2975.2,2974.4,1.00984429]
[1766332140373,4.63295176,2975.2,2974.5,0.435]
[1766332140573,0.9396,2975.3,2974.4,0.435]
[1766332140773,0.4137,2975.0,2974.4,0.435]
[1766332141001,1.3533,2974.9,2974.4,0.81472]
[1766332141308,0.9396,2974.9,2974.3,0.435]
[1766332141602,1.3533,2974.6,2974.3,0.435]
[1766332141812,5.06995176,2974.8,2973.7,3.36274519]
[1766332141985,0.9396,2974.5,2973.8,0.33627452]
[1766332142303,1.3533,2974.2,2973.8,0.33627452]
[1766332142497,1.01025918,2974.7,2973.8,0.33627452]
[1766332142704,0.4137,2974.5,2973.7,0.435]
[1766332142910,0.4137,2974.3,2973.7,0.435]
[1766332143092,1.3533,2974.2,2973.7,0.435]
[1766332143982,1.3533,2974.2,2973.1,1.01025918]
[1766332143983,7.73378765,2974.7,2973.1,1.01025918]
[1766332144191,7.73378765,2974.7,2973.3,3.36316929]
[1766332144192,1.3533,2974.1,2973.3,3.36316929]
[1766332144575,2.09075495,2974.6,2973.1,0.437]
[1766332144576,5.71329442,2974.6,2973.2,3.3633403]
[1766332144771,0.4137,2974.2,2973.2,3.3633403]
[1766332144976,1.01041229,2974.1,2973.2,3.3633403]
[1766332145193,0.4089,2973.9,2973.3,0.435]
[1766332145418,0.9791,2974.0,2973.3,0.435]
[1766332145615,0.9791,2973.9,2973.3,0.435]
[1766332145898,1.388,2973.8,2973.3,0.435]
[1766332146093,1.388,2973.7,2973.3,0.435]
[1766332146296,0.9791,2974.0,2973.3,0.435]